bitfinex/quotes_BTCUSD_20241014
["timestamp","ask_amount","ask_price","bid_price","bid_amount"]
[1728936362380,0.78790909,65911.0,65910.0,0.000826]
[1728936362598,0.85763835,65911.0,65910.0,0.000826]
[1728936363416,0.74492858,65911.0,65910.0,0.000826]
[1728936363616,0.74292858,65911.0,65910.0,0.000826]
[1728936363884,0.75092858,65911.0,65910.0,0.000826]
[1728936364091,0.151728,65907.0,65906.0,0.0764]
[1728936364291,0.49862852,65907.0,65906.0,0.0764]
[1728936364501,0.45298956,65907.0,65906.0,0.0764]
[1728936365627,0.46898956,65907.0,65906.0,0.0764]
[1728936366337,0.46899749,65907.0,65906.0,0.0764]
[1728936368303,0.46899749,65907.0,65906.0,0.077225]
[1728936368548,0.53660964,65907.0,65906.0,0.077225]
[1728936369082,0.53660964,65907.0,65906.0,0.000825]
[1728936369083,0.73539148,65907.0,65906.0,0.000825]
[1728936369300,0.8480784,65907.0,65906.0,0.000825]
[1728936369519,0.78744072,65907.0,65906.0,0.000825]
[1728936369761,0.78744072,65907.0,65901.0,0.0005]
[1728936369762,0.25174,65902.0,65901.0,0.0005]
[1728936369986,0.71453629,65902.0,65901.0,0.0005]
[1728936370218,0.71948471,65902.0,65901.0,0.0005]
[1728936370490,0.65990196,65902.0,65901.0,0.0005]
[1728936370680,0.71949089,65902.0,65901.0,0.0005]
[1728936371365,0.72149089,65902.0,65901.0,0.0005]
[1728936371579,0.72549089,65902.0,65901.0,0.0005]
[1728936373400,0.73324444,65902.0,65901.0,0.0005]
[1728936374068,0.73824444,65902.0,65901.0,0.0005]
[1728936374289,0.274751,65897.0,65895.0,0.0751]
[1728936374511,0.7877319,65897.0,65895.0,0.0751]
[1728936374733,0.71948001,65897.0,65895.0,0.0751]
[1728936375845,0.71948001,65897.0,65896.0,0.001826]
[1728936376512,0.83225323,65897.0,65896.0,0.001826]
[1728936377208,0.83425323,65897.0,65896.0,0.001826]
[1728936377427,0.83425323,65897.0,65896.0,0.000826]
[1728936377669,0.83225323,65897.0,65896.0,0.000826]
[1728936378135,0.83525323,65897.0,65896.0,0.000826]
[1728936378355,0.84225323,65897.0,65896.0,0.000826]
[1728936378569,0.83925323,65897.0,65896.0,0.000826]
[1728936378782,0.84725323,65897.0,65896.0,0.000826]
[1728936378998,0.85725323,65897.0,65896.0,0.000826]
[1728936379217,0.274754,65896.0,65895.0,0.07457693]
[1728936379433,0.71462377,65896.0,65895.0,0.07457693]
[1728936379652,0.71947057,65896.0,65895.0,0.07457693]
[1728936380720,0.72647057,65896.0,65895.0,0.07457693]
[1728936380937,0.73547057,65896.0,65895.0,0.07457693]
[1728936381838,0.68916575,65896.0,65895.0,0.07457693]
[1728936382130,0.65247481,65896.0,65895.0,0.07457693]
[1728936382265,0.73535515,65896.0,65895.0,0.07457693]
[1728936383498,0.84812837,65896.0,65895.0,0.07457693]
[1728936383913,0.73535515,65896.0,65895.0,0.07457693]
[1728936385493,0.7744859,65896.0,65895.0,0.07457693]
[1728936385690,0.84813265,65896.0,65895.0,0.07457693]
[1728936386992,0.84813265,65896.0,65895.0,0.17357693]
[1728936388388,0.73535943,65896.0,65895.0,0.16857693]
[1728936389259,0.73535943,65896.0,65895.0,0.15887693]
[1728936389480,0.73541191,65896.0,65895.0,0.15887693]
[1728936389711,0.84818513,65896.0,65895.0,0.15887693]
[1728936392528,0.84818513,65896.0,65895.0,0.15970293]
[1728936393308,0.76524989,65896.0,65895.0,0.15970293]
[1728936393473,0.84826428,65896.0,65895.0,0.15970293]
[1728936393713,0.84826594,65896.0,65895.0,0.15970293]
[1728936394420,0.84865391,65896.0,65895.0,0.15970293]
[1728936395111,0.77439827,65896.0,65895.0,0.12550824]
[1728936395343,0.75932564,65896.0,65895.0,0.12550824]
[1728936395871,0.73577359,65896.0,65895.0,0.12550824]
[1728936397231,0.71771926,65896.0,65895.0,0.12550824]
[1728936397373,0.73581359,65896.0,65895.0,0.12550824]
[1728936397708,0.75090241,65896.0,65895.0,0.12550824]
[1728936398371,0.77446274,65896.0,65895.0,0.12550824]
[1728936398624,0.43651421,65896.0,65895.0,0.12550824]
[1728936398860,0.12376508,65896.0,65895.0,0.28218424]
[1728936399088,0.12376508,65896.0,65895.0,0.28521909]
[1728936399307,0.10114716,65896.0,65895.0,0.28521909]
[1728936399730,0.10071439,65896.0,65895.0,0.28521909]
[1728936400003,0.09171439,65896.0,65895.0,0.13042824]
[1728936400241,0.10834197,65896.0,65895.0,0.13042824]
[1728936400472,0.10833418,65896.0,65895.0,0.13042824]
[1728936400724,0.10733418,65896.0,65895.0,0.28218424]
[1728936400957,0.07057753,65896.0,65895.0,0.28318424]
[1728936401191,0.10733503,65896.0,65895.0,0.28318424]
[1728936401409,0.10733503,65896.0,65895.0,0.28218424]
[1728936401836,0.10833503,65896.0,65895.0,0.28418424]
[1728936402003,0.10833503,65896.0,65895.0,0.78418424]
[1728936402385,0.15350556,65896.0,65895.0,0.78418424]
[1728936404120,0.04499903,65896.0,65895.0,0.78418424]
[1728936404626,0.01954298,65896.0,65895.0,0.63242824]
[1728936404807,0.04497511,65896.0,65895.0,0.78418424]
[1728936405016,0.04497478,65896.0,65895.0,0.78418424]
[1728936405227,0.001,65896.0,65895.0,0.81730591]
[1728936405455,0.002652,65896.0,65895.0,0.81730591]
[1728936406700,0.001652,65901.0,65900.0,0.00492]
[1728936406914,0.001652,65901.0,65900.0,0.50958488]
[1728936407332,0.001652,65901.0,65900.0,0.85023323]
[1728936407795,0.003652,65901.0,65900.0,0.85323323]
[1728936408223,0.001652,65901.0,65900.0,0.85023323]
[1728936408441,0.002652,65901.0,65900.0,0.85223323]
[1728936409704,0.001652,65901.0,65900.0,0.85023323]
[1728936410207,0.003652,65901.0,65900.0,0.86923323]
[1728936410645,0.002652,65901.0,65900.0,0.86323323]
[1728936410860,0.003652,65901.0,65900.0,0.86923323]
[1728936411352,0.003652,65901.0,65900.0,0.87123323]
[1728936412083,0.22905538,65914.0,65912.0,0.00492]
[1728936412259,0.22905538,65914.0,65913.0,0.51458878]
[1728936412508,0.00165,65914.0,65913.0,0.51155488]
[1728936414326,0.00165,65914.0,65913.0,0.51455488]
[1728936414526,0.00165,65914.0,65913.0,0.51555488]
[1728936415043,0.00165,65914.0,65913.0,1.08360861]
[1728936415279,0.00165,65914.0,65913.0,0.85620323]
[1728936415500,0.00165,65914.0,65913.0,0.70366929]
[1728936415693,0.00165,65914.0,65913.0,0.88078917]
[1728936416194,0.00165,65914.0,65913.0,0.87778917]
[1728936416415,0.00265,65914.0,65913.0,0.89444127]
[1728936416631,0.00265,65914.0,65913.0,0.88544127]
[1728936416632,0.00165,65914.0,65913.0,0.88544127]
[1728936416888,0.00265,65914.0,65913.0,0.89544127]
[1728936417104,0.00165,65920.0,65913.0,0.89544127]
[1728936417105,0.00165,65920.0,65919.0,0.343721]
[1728936417322,0.00165,65920.0,65919.0,0.85148923]
[1728936418945,0.00265,65920.0,65919.0,0.85848923]
[1728936419147,0.00265,65920.0,65919.0,1.35848923]
[1728936419364,0.00365,65920.0,65919.0,1.47248923]
[1728936419594,0.00265,65920.0,65919.0,1.45848923]
[1728936420041,0.00265,65920.0,65919.0,1.46548923]
[1728936420292,0.00265,65920.0,65919.0,1.45648923]
[1728936420507,0.00365,65920.0,65919.0,1.47048923]
[1728936420754,0.00265,65920.0,65919.0,1.46548923]
[1728936421237,0.00365,65920.0,65919.0,1.47048923]
[1728936421416,0.00365,65920.0,65919.0,1.46848923]
[1728936421621,0.00265,65920.0,65919.0,1.46548923]
[1728936421848,0.00365,65920.0,65919.0,1.47048923]
[1728936422089,0.00365,65920.0,65919.0,1.45648923]
[1728936422090,0.00265,65920.0,65919.0,1.45648923]
[1728936422528,0.00365,65920.0,65919.0,1.46948923]
[1728936424349,0.00165,65937.0,65928.0,0.52531988]
[1728936424547,0.00165,65937.0,65928.0,0.67884835]
[1728936425185,0.00165,65934.0,65928.0,0.67884835]
[1728936425452,0.00165,65934.0,65928.0,0.68984835]
[1728936425671,0.00265,65929.0,65928.0,0.68984835]
[1728936425893,0.00265,65929.0,65928.0,0.86496823]
[1728936426103,0.00265,65929.0,65928.0,0.96696823]
[1728936426387,0.00265,65929.0,65928.0,0.78984835]
[1728936426595,0.00265,65929.0,65928.0,1.28984835]
[1728936426833,0.00165,65929.0,65928.0,1.27884835]
[1728936427038,0.00365,65929.0,65928.0,1.29784835]
[1728936427469,0.00265,65929.0,65928.0,1.29184835]
[1728936427685,0.00365,65929.0,65928.0,1.29884835]
[1728936428328,0.00265,65929.0,65928.0,1.28584835]
[1728936428762,0.00265,65929.0,65928.0,1.29984835]
[1728936428983,0.00265,65929.0,65928.0,1.28584835]
[1728936429247,0.00165,65929.0,65928.0,1.29284835]
[1728936429675,0.00265,65929.0,65928.0,1.30684835]
[1728936430610,0.00265,65929.0,65928.0,1.31444323]
[1728936437309,0.00265,65929.0,65928.0,1.31244323]
[1728936437535,0.00265,65929.0,65928.0,1.31444323]
[1728936438224,0.00265,65929.0,65928.0,1.36364813]
[1728936441336,0.00165,65934.0,65928.0,1.36364813]
[1728936441337,0.00165,65934.0,65933.0,0.78687617]
[1728936441581,0.00165,65934.0,65933.0,0.94040464]
[1728936442220,0.00165,65934.0,65933.0,0.84987675]
[1728936442487,0.00165,65934.0,65933.0,0.96303914]
[1728936442676,0.00265,65934.0,65933.0,0.97403914]
[1728936442923,0.00265,65934.0,65933.0,0.98803914]
[1728936443131,0.00265,65934.0,65933.0,0.87487675]
[1728936449077,0.00265,65934.0,65933.0,0.64855197]
[1728936449349,0.00265,65934.0,65933.0,0.87487675]
[1728936455144,0.00265,65934.0,65933.0,0.98803914]
[1728936456469,0.22740538,65953.0,65947.0,0.00992]
[1728936456635,0.04128013,65948.0,65947.0,0.27471839]
[1728936457070,0.04128013,65948.0,65947.0,0.27971839]
[1728936457298,0.04128013,65948.0,65947.0,0.28171839]
[1728936457522,0.0299573,65948.0,65947.0,0.28171839]
[1728936457728,0.0299573,65948.0,65947.0,0.27971839]
[1728936457899,0.00165,65948.0,65947.0,0.27971839]
[1728936458271,0.00165,65948.0,65947.0,0.28971839]
[1728936458944,0.00165,65948.0,65947.0,0.78971839]
[1728936459281,0.00265,65948.0,65947.0,0.79671839]
[1728936460070,0.00265,65948.0,65947.0,1.06540925]
[1728936460281,0.00265,65948.0,65947.0,1.14440925]
[1728936460497,0.00265,65948.0,65947.0,1.23890925]
[1728936460930,0.00057484,65955.0,65954.0,0.01692]
[1728936461140,0.00057484,65955.0,65954.0,0.72599325]
[1728936461422,0.00057484,65955.0,65954.0,0.72399325]
[1728936462671,0.00057484,65955.0,65954.0,0.73699325]
[1728936463518,0.00057484,65955.0,65954.0,1.23699325]
[1728936463997,0.00057484,65955.0,65954.0,1.24699325]
[1728936464201,0.00057484,65955.0,65954.0,1.24899325]
[1728936465252,0.00165,65962.0,65961.0,0.156524]
[1728936465436,0.00165,65962.0,65961.0,0.64427725]
[1728936466038,0.00165,65962.0,65961.0,0.72117725]
[1728936466461,0.00165,65962.0,65961.0,0.83433964]
[1728936466670,0.00165,65962.0,65961.0,0.72317725]
[1728936467084,0.00165,65962.0,65961.0,1.33633964]
[1728936467198,0.00165,65962.0,65961.0,1.23617725]
[1728936467653,0.00165,65962.0,65961.0,1.23217725]
[1728936467891,0.00165,65962.0,65961.0,1.23817725]
[1728936469272,0.00165,65962.0,65961.0,1.23617725]
[1728936469742,0.00165,65962.0,65961.0,1.22117725]
[1728936470193,0.00165,65962.0,65961.0,1.24117725]
[1728936470640,0.00165,65962.0,65961.0,1.23517725]
[1728936471081,0.00165,65962.0,65961.0,1.24717725]
[1728936472904,0.00165,65962.0,65961.0,1.24917725]
[1728936474116,0.00165,65962.0,65961.0,1.36233964]
[1728936474329,0.001652,65963.0,65962.0,0.338222]
[1728936474563,0.001652,65963.0,65962.0,0.49175047]
[1728936475467,0.001652,65963.0,65962.0,0.59175047]
[1728936475918,0.00165,65967.0,65966.0,0.56453778]
[1728936476145,0.00165,65980.0,65973.0,0.166497]
[1728936476146,0.22740538,65974.0,65973.0,0.166497]
[1728936476379,0.22740538,65974.0,65973.0,0.62505025]
[1728936476648,0.00165,65980.0,65979.0,0.00492]
[1728936476888,0.00165,65980.0,65979.0,0.26964539]
[1728936478205,0.00165,65980.0,65979.0,0.27364539]
[1728936479789,0.00165,65980.0,65979.0,0.27464539]
[1728936480241,0.00165,65980.0,65979.0,0.29744416]
[1728936480508,0.00165,65980.0,65979.0,0.29987868]
[1728936482294,0.00165,65980.0,65979.0,0.41304107]
[1728936482510,0.00165,65980.0,65979.0,0.48930655]
[1728936482915,0.00165,65980.0,65979.0,0.57930655]
[1728936483133,0.00165,65980.0,65979.0,0.57830655]
[1728936483374,0.00165,65980.0,65979.0,0.57530655]
[1728936483841,0.00165,65980.0,65979.0,0.58230655]
[1728936484268,0.00165,65980.0,65979.0,0.58730655]
[1728936486285,0.00165,65980.0,65979.0,0.47414416]
[1728936486904,0.00165,65980.0,65979.0,0.48414416]
[1728936487126,0.00165,65980.0,65979.0,0.59730655]
[1728936487354,0.00165,65980.0,65979.0,0.48414416]
[1728936487573,0.00165,65980.0,65979.0,0.59730655]
[1728936488045,0.00165,65980.0,65979.0,0.48414416]
[1728936488829,0.00165,65980.0,65979.0,0.75083502]
[1728936491029,0.00165,65980.0,65979.0,0.73783502]
[1728936491313,0.00165,65980.0,65979.0,0.74583502]
[1728936491534,0.00165,65980.0,65979.0,0.65783502]
[1728936491739,0.00165,65980.0,65979.0,0.57713502]
[1728936492431,0.00165,65980.0,65979.0,0.58213502]
[1728936492644,0.00165,65980.0,65979.0,0.57413502]
[1728936492856,0.00165,65980.0,65979.0,0.58313502]
[1728936493073,0.00165,65980.0,65979.0,0.59513502]
[1728936501223,0.00165,65995.0,65994.0,0.26469039]
[1728936501445,0.05951542,65995.0,65994.0,0.26469039]
[1728936503202,0.05951542,65995.0,65994.0,0.76469039]
[1728936503416,0.08221878,65995.0,65994.0,0.76469039]
[1728936504322,0.05951542,65995.0,65994.0,0.76469039]
[1728936511136,0.08224041,65995.0,65994.0,0.76469039]
[1728936511373,0.10504614,65995.0,65994.0,0.76469039]
[1728936512703,0.15028235,65995.0,65994.0,0.76469039]
[1728936513347,0.10504614,65995.0,65994.0,0.76469039]
[1728936513571,0.15028235,65995.0,65994.0,0.76469039]
[1728936515079,0.15032638,65995.0,65994.0,0.76469039]
[1728936516002,0.1504748,65995.0,65994.0,0.76469039]
[1728936516479,0.10509017,65995.0,65994.0,0.76469039]
[1728936517355,0.17316712,65995.0,65994.0,0.76469039]
[1728936518429,0.10509017,65995.0,65994.0,0.76469039]
[1728936519530,0.36353913,65995.0,65994.0,0.76469039]
[1728936519854,0.37025617,65995.0,65994.0,0.76469039]
[1728936520238,0.37784218,65995.0,65994.0,0.76469039]
[1728936520860,0.37795733,65995.0,65994.0,0.76551439]
[1728936521497,0.28709609,65995.0,65994.0,0.76551439]
[1728936522993,0.19027587,65995.0,65994.0,0.76551439]
[1728936523199,0.28717447,65995.0,65994.0,0.76551439]
[1728936523386,0.40075102,65995.0,65994.0,0.76551439]
[1728936524435,0.28717447,65995.0,65994.0,0.76551439]
[1728936525730,0.28717447,65995.0,65994.0,0.652352]
[1728936525948,0.77032894,65995.0,65994.0,0.500824]
[1728936526173,0.91620277,65995.0,65994.0,0.500824]
[1728936526387,0.77032894,65995.0,65994.0,0.500824]
[1728936526834,1.00011296,65995.0,65994.0,0.500824]
[1728936527042,0.85192961,65995.0,65994.0,0.500824]
[1728936527257,0.65032254,65995.0,65994.0,0.46668237]
[1728936527461,0.62662937,65995.0,65994.0,0.46668237]
[1728936527933,0.2950009,65995.0,65994.0,0.61821037]
[1728936528144,0.2950009,65995.0,65994.0,0.61921037]
[1728936528145,0.27793111,65995.0,65994.0,0.61921037]
[1728936528389,0.27793111,65995.0,65994.0,0.65335137]
[1728936528598,0.27793111,65995.0,65994.0,0.65235137]
[1728936528599,0.36215614,65995.0,65994.0,0.65235137]
[1728936528854,0.25519642,65995.0,65994.0,0.65235137]
[1728936529060,0.08749355,65995.0,65994.0,0.65335137]
[1728936529289,0.03981482,65995.0,65994.0,0.65335137]
[1728936529727,0.24857347,65995.0,65994.0,0.65235137]
[1728936529961,0.25530493,65995.0,65994.0,0.65535137]
[1728936530626,0.25530454,65995.0,65994.0,0.65635137]
[1728936530862,0.25530454,65995.0,65994.0,0.65535137]
[1728936531080,0.08747239,65995.0,65994.0,0.65535137]
[1728936531303,0.25530318,65995.0,65994.0,0.65535137]
[1728936531541,0.24857172,65995.0,65994.0,0.65535137]
[1728936531803,0.08808064,65995.0,65994.0,0.75977137]
[1728936532042,0.15627959,65995.0,65994.0,0.75977137]
[1728936532270,0.14893792,65995.0,65994.0,0.75977137]
[1728936532504,0.12620228,65995.0,65994.0,0.75977137]
[1728936532733,0.10801377,65995.0,65994.0,0.75977137]
[1728936532979,0.10966177,65995.0,65994.0,0.75977137]
[1728936533221,0.06984695,65995.0,65994.0,0.99649984]
[1728936533475,0.00758577,66003.0,65994.0,0.99649984]
[1728936533476,0.22740538,66011.0,66010.0,0.01492]
[1728936533729,0.22740538,66011.0,66010.0,0.57543678]
[1728936533730,0.18006498,66011.0,66010.0,0.57543678]
[1728936533978,0.00165,66014.0,66013.0,0.161405]
[1728936534207,0.00165,66014.0,66013.0,0.166405]
[1728936534457,0.00165,66014.0,66013.0,0.27956739]
[1728936534916,0.00165,66014.0,66013.0,0.166405]
[1728936535569,0.00165,66014.0,66013.0,0.180405]
[1728936536044,0.00165,66014.0,66013.0,0.29756739]
[1728936536284,0.00165,66014.0,66013.0,0.30756739]
[1728936536514,0.00165,66014.0,66013.0,0.30256739]
[1728936536986,0.00165,66014.0,66013.0,0.028]
[1728936537474,0.17817847,66014.0,66013.0,0.028]
[1728936538440,0.17817847,66014.0,66013.0,0.014]
[1728936538676,0.023,66013.0,66011.0,0.02371285]
[1728936538904,0.17652847,66012.0,66011.0,0.02371285]
[1728936540126,0.17652847,66012.0,66011.0,0.02671285]
[1728936540306,0.17652847,66012.0,66011.0,0.003]
[1728936541520,0.023,66011.0,66010.0,0.5]
[1728936541751,0.15352847,66011.0,66010.0,0.5]
[1728936541977,0.17652847,66011.0,66010.0,0.5]
[1728936542898,0.17652847,66011.0,66010.0,0.501]
[1728936544549,0.17652847,66011.0,66010.0,0.5]
[1728936545242,0.20201267,66011.0,66010.0,0.5]
[1728936545467,0.21617056,66011.0,66010.0,0.5]
[1728936545970,0.21617056,66011.0,66010.0,0.501648]
[1728936546195,0.23882363,66011.0,66010.0,0.501648]
[1728936546440,0.21617056,66011.0,66010.0,0.501648]
[1728936548082,0.03964209,66011.0,66010.0,0.501648]
[1728936548341,0.0254842,66011.0,66010.0,0.65314]
[1728936548782,0.01415789,66011.0,66010.0,0.65314]
[1728936549005,0.025484,66011.0,66010.0,0.65314]
[1728936549256,0.00165,66014.0,66010.0,0.583348]
[1728936549476,0.00165,66014.0,66013.0,0.151485]
[1728936550877,0.00165,66014.0,66013.0,0.155485]
[1728936552453,0.00165,66014.0,66013.0,0.162485]
[1728936552921,0.00165,66014.0,66013.0,0.158485]
[1728936553138,0.00165,66014.0,66013.0,0.151485]
[1728936553442,0.00165,66014.0,66013.0,0.153485]
[1728936553628,0.00165,66014.0,66013.0,0.158485]
[1728936554104,0.00165,66014.0,66013.0,0.007]
[1728936554327,0.36929528,66014.0,66013.0,0.007]
[1728936554600,0.43271231,66014.0,66013.0,0.007]
[1728936554845,0.50066536,66014.0,66013.0,0.007]
[1728936555077,0.60755247,66014.0,66013.0,0.007]
[1728936555311,0.60755247,66014.0,66013.0,0.002]
[1728936555540,0.44029747,66014.0,66013.0,0.002]
[1728936555799,0.023,66013.0,66010.0,0.501648]
[1728936556031,0.21979983,66011.0,66010.0,0.501648]
[1728936556392,0.41014406,66011.0,66010.0,0.501648]
[1728936556564,0.56225228,66011.0,66010.0,0.501648]
[1728936556733,0.90959896,66011.0,66010.0,0.501648]
[1728936556948,0.82447376,66011.0,66010.0,0.501648]
[1728936557447,0.83958718,66011.0,66010.0,0.501648]
[1728936557892,0.89477376,66011.0,66010.0,0.501648]
[1728936558785,0.89477376,66011.0,66010.0,0.502648]
[1728936559158,0.89477376,66011.0,66010.0,0.501648]
[1728936559348,0.89477376,66011.0,66010.0,0.502648]
[1728936559550,0.89477376,66011.0,66010.0,0.503648]
[1728936559749,0.89559776,66011.0,66010.0,0.502648]
[1728936560035,0.88359776,66011.0,66010.0,0.501648]
[1728936560256,0.73450681,66011.0,66010.0,0.501648]
[1728936560530,0.8250956,66011.0,66010.0,0.502648]
[1728936561628,0.82909357,66011.0,66010.0,0.503648]
[1728936562055,0.82909082,66011.0,66010.0,0.503648]
[1728936562277,0.71580796,66011.0,66010.0,0.503648]
[1728936563454,0.67898163,66011.0,66010.0,0.503648]
[1728936563646,0.71580343,66011.0,66010.0,0.503648]
[1728936563857,0.82908628,66011.0,66010.0,0.503648]
[1728936564088,0.82908698,66011.0,66010.0,0.503648]
[1728936564579,0.71580343,66011.0,66010.0,0.503648]
[1728936564787,0.82908634,66011.0,66010.0,0.503648]
[1728936565006,0.71580343,66011.0,66010.0,0.503648]
[1728936565219,0.82908375,66011.0,66010.0,0.503648]
[1728936565445,0.71580343,66011.0,66010.0,0.503648]
[1728936565635,0.8290856,66011.0,66010.0,0.503648]
[1728936566923,0.8290869,66011.0,66010.0,0.503648]
[1728936567822,0.7922626,66011.0,66010.0,0.503648]
[1728936567983,0.82910679,66011.0,66010.0,0.503648]
[1728936568415,0.82410679,66011.0,66010.0,0.503648]
[1728936568694,0.71083541,66011.0,66010.0,0.503648]
[1728936568906,0.61153084,66011.0,66010.0,0.503648]
[1728936569105,0.54356582,66011.0,66010.0,0.503648]
[1728936569348,0.60753084,66011.0,66010.0,0.501648]
[1728936569556,0.53956582,66011.0,66010.0,0.501648]
[1728936569766,0.54356582,66011.0,66010.0,0.503648]
[1728936570014,0.61153343,66011.0,66010.0,0.503648]
[1728936570226,0.61153343,66011.0,66010.0,0.502648]
[1728936570446,0.36004443,66011.0,66010.0,0.502648]
[1728936570657,0.28449123,66011.0,66010.0,0.502648]
[1728936570871,0.32580333,66011.0,66010.0,0.501648]
[1728936571083,0.47729259,66011.0,66010.0,0.502648]
[1728936571315,0.43598023,66011.0,66010.0,0.503648]
[1728936571571,0.43198023,66011.0,66010.0,0.502648]
[1728936571788,0.43598023,66011.0,66010.0,0.502648]
[1728936572029,0.10796276,66011.0,66010.0,0.502648]
[1728936572246,0.08530319,66011.0,66010.0,0.73324]
[1728936572653,0.03033052,66011.0,66010.0,0.73424]
[1728936573121,0.03033052,66011.0,66010.0,0.73324]
[1728936574507,0.02633052,66011.0,66010.0,0.73324]
[1728936574716,0.02633052,66011.0,66010.0,0.73424]
[1728936575023,0.02632472,66011.0,66010.0,0.73424]
[1728936579174,0.02632267,66011.0,66010.0,0.73424]
[1728936583530,0.02632267,66011.0,66010.0,0.82614]
[1728936583744,0.000824,66011.0,66010.0,0.82614]
[1728936584215,0.000824,66011.0,66010.0,0.83106]
[1728936584665,0.000824,66011.0,66010.0,0.83006]
[1728936584883,0.000824,66011.0,66010.0,0.84006]
[1728936586581,0.000824,66011.0,66010.0,0.84606]
[1728936595963,0.000824,66011.0,66010.0,0.95897199]
[1728936600267,0.000824,66011.0,66010.0,1.23541245]
[1728936601029,0.000824,66011.0,66010.0,1.22941245]
[1728936601236,0.000824,66011.0,66010.0,1.00958847]
[1728936601475,0.000824,66011.0,66010.0,1.12250046]
[1728936601662,0.000824,66011.0,66010.0,1.11250046]
[1728936601903,0.000824,66011.0,66010.0,1.12050046]
[1728936602110,0.000824,66011.0,66010.0,1.11950046]
[1728936602523,0.000824,66011.0,66010.0,1.12050046]
[1728936602914,0.000824,66011.0,66010.0,1.13250046]
[1728936607009,0.000824,66011.0,66010.0,0.85606]
[1728936607441,0.000824,66011.0,66010.0,0.86606]
[1728936607858,0.000824,66011.0,66010.0,0.85114]
[1728936608514,0.000824,66011.0,66010.0,0.75924]
[1728936612025,0.02638546,66011.0,66010.0,0.75924]
[1728936612238,0.02638546,66011.0,66010.0,0.67914]
[1728936612453,0.06331012,66011.0,66010.0,0.67914]
[1728936612669,0.06331669,66011.0,66010.0,0.527648]
[1728936612880,0.151485,66013.0,66010.0,0.527648]
[1728936613090,0.151484,66014.0,66010.0,0.527648]
[1728936613301,0.16966667,66013.0,66010.0,0.513648]
[1728936613534,0.151484,66014.0,66010.0,0.513648]
[1728936613754,0.01818279,66013.0,66010.0,0.509648]
[1728936613975,0.023,66016.0,66010.0,0.509648]
[1728936614208,0.01818282,66015.0,66011.0,0.151489]
[1728936614420,0.04118282,66014.0,66011.0,0.151489]
[1728936614605,0.151476,66017.0,66010.0,0.816631]
[1728936614606,0.023,66016.0,66012.0,0.151487]
[1728936614907,0.023,66014.0,66012.0,0.151487]
[1728936615284,0.023,66016.0,66012.0,0.151487]
[1728936615512,0.023,66014.0,66012.0,0.151487]
[1728936615936,0.023,66016.0,66012.0,0.151487]
[1728936616344,0.023,66014.0,66012.0,0.154487]
[1728936616570,0.023,66016.0,66012.0,0.154487]
[1728936616777,0.023825,66014.0,66013.0,0.151485]
[1728936616983,0.01900175,66014.0,66013.0,0.151485]
[1728936617409,0.04200175,66014.0,66013.0,0.151485]
[1728936618497,0.000825,66014.0,66013.0,0.151485]
[1728936618719,0.023825,66014.0,66013.0,0.151485]
[1728936619104,0.000825,66014.0,66013.0,0.151485]
[1728936619540,0.023825,66014.0,66013.0,0.151485]
[1728936619745,0.000825,66014.0,66013.0,0.151485]
[1728936619975,0.023825,66014.0,66011.0,0.151489]
[1728936620187,0.023825,66014.0,66010.0,0.804631]
[1728936620371,0.000825,66014.0,66013.0,0.151485]
[1728936620603,0.023825,66014.0,66013.0,0.151485]
[1728936621011,0.000825,66014.0,66013.0,0.151485]
[1728936621240,0.023825,66014.0,66013.0,0.151485]
[1728936621716,0.000825,66014.0,66013.0,0.229985]
[1728936621924,0.000825,66014.0,66013.0,0.44554627]
[1728936622155,0.000825,66014.0,66013.0,0.44251699]
[1728936623700,0.000825,66014.0,66013.0,0.45251699]
[1728936624116,0.000825,66014.0,66013.0,0.45851699]
[1728936624327,0.000825,66014.0,66013.0,0.47251699]
[1728936624535,0.000825,66014.0,66013.0,0.46651699]
[1728936624743,0.000825,66014.0,66013.0,0.48051699]
[1728936626009,0.000825,66014.0,66013.0,0.54401739]
[1728936626637,0.000825,66014.0,66013.0,1.04401739]
[1728936634291,0.000825,66014.0,66013.0,1.03901739]
[1728936636391,0.000825,66014.0,66013.0,0.752985]
[1728936636657,0.000825,66014.0,66013.0,0.674485]
[1728936637135,0.000825,66014.0,66013.0,0.850585]
[1728936637337,0.000825,66014.0,66013.0,0.836585]
[1728936637541,0.000825,66014.0,66013.0,0.843585]
[1728936638612,0.000825,66014.0,66013.0,0.829585]
[1728936638891,0.000825,66014.0,66013.0,0.837585]
[1728936639114,0.000825,66014.0,66013.0,0.830585]
[1728936639329,0.000825,66014.0,66013.0,0.836585]
[1728936641738,0.000825,66014.0,66013.0,0.838235]
[1728936646025,0.000825,66014.0,66013.0,0.95113161]
[1728936647969,0.000825,66014.0,66013.0,0.662135]
[1728936649171,0.01501938,66014.0,66013.0,0.662135]
[1728936649429,0.02637489,66014.0,66013.0,0.662135]
[1728936649967,0.000825,66014.0,66013.0,0.662135]
[1728936650145,0.0263789,66014.0,66013.0,0.662135]
[1728936651084,0.0263789,66014.0,66013.0,0.77503161]
[1728936651571,0.04058146,66014.0,66013.0,0.77503161]
[1728936651818,0.0263789,66014.0,66013.0,0.77503161]
[1728936654182,0.000825,66014.0,66013.0,1.06592822]
[1728936654400,0.000825,66014.0,66013.0,1.23437669]
[1728936655261,0.000825,66014.0,66013.0,1.22837669]
[1728936655674,0.000825,66014.0,66013.0,1.23037669]
[1728936656069,0.000825,66014.0,66013.0,1.24437669]
[1728936660673,0.000825,66014.0,66013.0,1.24637669]
[1728936660952,0.000825,66014.0,66013.0,1.24437669]
[1728936663753,0.000825,66014.0,66013.0,1.24637669]
[1728936664150,0.000825,66014.0,66013.0,1.24437669]
[1728936669986,0.000825,66016.0,66015.0,0.3497]
[1728936670185,0.000825,66016.0,66015.0,0.50322847]
[1728936671773,0.000825,66016.0,66015.0,0.53122847]
[1728936672204,0.000825,66016.0,66015.0,1.33122847]
[1728936673376,0.00165,66028.0,66026.0,0.56346822]
[1728936673610,0.00165,66028.0,66026.0,0.72699669]
[1728936673852,0.00165,66028.0,66027.0,0.156373]
[1728936674148,0.00165,66028.0,66027.0,0.30990147]
[1728936675122,0.00165,66028.0,66027.0,0.32290147]
[1728936675303,0.00145686,66028.0,66027.0,0.32290147]
[1728936675500,0.00145686,66028.0,66027.0,0.33690147]
[1728936679431,0.00145686,66028.0,66027.0,0.41650147]